[Event "GrandPrix_30.05"]
[Site "Chess.com"]
[Date "2020.05.30"]
[Round "6"]
[White "TheJoker64"]
[Black "tsaruk_maks"]
[Result "1/2-1/2"]
[WhiteElo "2258"]
[BlackElo "2373"]
[TimeControl "600+2"]
[EndTime "10:58:02 PDT"]
[Termination "Game drawn by agreement"]

1. e4 {[%clk 0:10:01.9]} 1... e6 {[%clk 0:10:00.9]} 2. d3 {[%clk 0:09:57.8]}
2... g6 {[%clk 0:09:54.7]} 3. g3 {[%clk 0:09:56.4]} 3... Bg7 {[%clk 0:09:55.8]}
4. Bg2 {[%clk 0:09:57.4]} 4... c5 {[%clk 0:09:56.4]} 5. Nf3 {[%clk 0:09:56.8]}
5... Ne7 {[%clk 0:09:57.6]} 6. h4 {[%clk 0:09:54.3]} 6... h6 {[%clk 0:09:50.8]}
7. Nc3 {[%clk 0:09:45.6]} 7... Nbc6 {[%clk 0:09:48.1]} 8. Be3 {[%clk 0:09:27]}
8... Nd4 {[%clk 0:09:46.5]} 9. Qd2 {[%clk 0:08:32.5]} 9... Nec6 {[%clk
0:09:41.4]} 10. Nd1 {[%clk 0:08:05.6]} 10... Nxf3+ {[%clk 0:09:22]} 11. Bxf3
{[%clk 0:08:05.3]} 11... d6 {[%clk 0:09:22.7]} 12. Bg2 {[%clk 0:07:49.5]} 12...
Bd7 {[%clk 0:09:20.3]} 13. c3 {[%clk 0:07:40.2]} 13... Ne5 {[%clk 0:07:53.6]}
14. f3 {[%clk 0:07:28]} 14... c4 {[%clk 0:07:21.7]} 15. Nf2 {[%clk 0:07:26.6]}
15... cxd3 {[%clk 0:07:21.6]} 16. Nxd3 {[%clk 0:06:37.3]} 16... Nc4 {[%clk
0:07:19.6]} 17. Qe2 {[%clk 0:06:38.2]} 17... Bb5 {[%clk 0:05:00.7]} 18. a4
{[%clk 0:06:01.4]} 18... Nxe3 {[%clk 0:04:39.3]} 19. Qxe3 {[%clk 0:06:00.3]}
19... Bc4 {[%clk 0:04:22.2]} 20. Nb4 {[%clk 0:04:44.8]} 20... O-O {[%clk
0:03:41.3]} 21. Kf2 {[%clk 0:04:35.8]} 21... a5 {[%clk 0:03:26]} 22. Nc2 {[%clk
0:04:34.7]} 22... d5 {[%clk 0:03:19.7]} 23. f4 {[%clk 0:04:13.2]} 23... dxe4
{[%clk 0:03:04.9]} 24. Bxe4 {[%clk 0:04:12.9]} 24... Qc7 {[%clk 0:02:51.4]} 25.
Na3 {[%clk 0:03:15.5]} 25... Rfd8 {[%clk 0:02:50]} 26. Nxc4 {[%clk 0:02:54.7]}
26... Qxc4 {[%clk 0:02:51.9]} 27. Rhd1 {[%clk 0:02:46.8]} 27... Rxd1 {[%clk
0:02:36.2]} 28. Rxd1 {[%clk 0:02:46.2]} 28... Qxa4 {[%clk 0:02:37.7]} 29. Qe2
{[%clk 0:02:47.4]} 29... Bf6 {[%clk 0:02:00.1]} 30. h5 {[%clk 0:01:47.9]} 30...
g5 {[%clk 0:01:51.1]} 31. Bc2 {[%clk 0:01:48.2]} 31... Qc6 {[%clk 0:01:18.1]}
32. Qd3 {[%clk 0:01:47.3]} 32... gxf4 {[%clk 0:00:53.3]} 33. Qh7+ {[%clk
0:01:45.7]} 33... Kf8 {[%clk 0:00:54.6]} 34. Qxh6+ {[%clk 0:01:45.7]} 34... Bg7
{[%clk 0:00:55.7]} 35. Qxf4 {[%clk 0:01:45.1]} 35... Qb6+ {[%clk 0:00:34.6]} 36.
Kf1 {[%clk 0:01:45.3]} 36... Qb5+ {[%clk 0:00:20.5]} 37. Kg1 {[%clk 0:01:32.4]}
37... Qxh5 {[%clk 0:00:20.1]} 38. Rd7 {[%clk 0:01:25.1]} 38... Kg8 {[%clk
0:00:08.9]} 39. Be4 {[%clk 0:01:17.9]} 39... Rf8 {[%clk 0:00:08.5]} 40. Rxb7
{[%clk 0:01:06.2]} 40... a4 {[%clk 0:00:05.1]} 41. Bf3 {[%clk 0:00:44.4]} 41...
Qc5+ {[%clk 0:00:06.6]} 42. Kg2 {[%clk 0:00:45.8]} 42... a3 {[%clk 0:00:07.6]}
43. bxa3 {[%clk 0:00:41.9]} 43... Qxa3 {[%clk 0:00:08.6]} 44. c4 {[%clk
0:00:37.9]} 44... Qa2+ {[%clk 0:00:09.7]} 45. Kh3 {[%clk 0:00:39.1]} 45... Qc2
{[%clk 0:00:10.1]} 46. Be4 {[%clk 0:00:35.3]} 46... Qc3 {[%clk 0:00:11.2]} 47.
Qh4 {[%clk 0:00:30]} 47... f5 {[%clk 0:00:12.3]} 48. Bg2 {[%clk 0:00:26.8]}
48... Rf6 {[%clk 0:00:04.5]} 49. Rb8+ {[%clk 0:00:22]} 49... Rf8 {[%clk
0:00:04.2]} 50. Rxf8+ {[%clk 0:00:17.3]} 50... Bxf8 {[%clk 0:00:06.1]} 1/2-1/2

[Event "GrandPrix_30.05"]
[Site "Chess.com"]
[Date "2020.05.30"]
[Round "6"]
[White "khekhm"]
[Black "DaggiGretarsson"]
[Result "1-0"]
[WhiteElo "2471"]
[BlackElo "2206"]
[TimeControl "600+2"]
[EndTime "10:58:06 PDT"]
[Termination "khekhm won by resignation"]

1. e4 {[%clk 0:10:01.9]} 1... g6 {[%clk 0:09:59.8]} 2. d4 {[%clk 0:09:58.2]}
2... Bg7 {[%clk 0:10:00.9]} 3. Nc3 {[%clk 0:09:59.4]} 3... d6 {[%clk 0:10:02]}
4. f4 {[%clk 0:10:00]} 4... a6 {[%clk 0:10:01.6]} 5. Nf3 {[%clk 0:10:00.3]} 5...
b5 {[%clk 0:10:02]} 6. Bd3 {[%clk 0:10:00.6]} 6... Nd7 {[%clk 0:10:02.4]} 7. e5
{[%clk 0:10:01.8]} 7... c5 {[%clk 0:10:02.7]} 8. Be3 {[%clk 0:09:40.6]} 8... b4
{[%clk 0:06:46.8]} 9. Ne4 {[%clk 0:08:50.1]} 9... Bb7 {[%clk 0:05:27.6]} 10. c3
{[%clk 0:07:00.5]} 10... Nh6 {[%clk 0:05:08.3]} 11. O-O {[%clk 0:06:34.3]} 11...
cxd4 {[%clk 0:04:26.5]} 12. cxd4 {[%clk 0:06:31.7]} 12... O-O {[%clk 0:04:25.2]}
13. Kh1 {[%clk 0:06:10.5]} 13... Nb6 {[%clk 0:04:09]} 14. Qe2 {[%clk 0:05:44.7]}
14... Nd5 {[%clk 0:04:06]} 15. Bd2 {[%clk 0:05:44.2]} 15... Qb6 {[%clk
0:04:04.1]} 16. Neg5 {[%clk 0:05:24.1]} 16... dxe5 {[%clk 0:03:24.3]} 17. fxe5
{[%clk 0:05:14]} 17... f6 {[%clk 0:03:24]} 18. exf6 {[%clk 0:04:17.1]} 18...
exf6 {[%clk 0:03:23.4]} 19. Qe6+ {[%clk 0:04:17.9]} 19... Qxe6 {[%clk
0:02:55.4]} 20. Nxe6 {[%clk 0:04:19.8]} 20... Rfe8 {[%clk 0:02:55.7]} 21. Rfe1
{[%clk 0:03:26.7]} 21... Ng4 {[%clk 0:02:49.5]} 22. Bc4 {[%clk 0:02:45.2]} 22...
Nb6 {[%clk 0:01:05.5]} 23. Bb3 {[%clk 0:02:21.1]} 23... Bd5 {[%clk 0:01:01.6]}
24. Nc7 {[%clk 0:01:55.4]} 24... Rxe1+ {[%clk 0:01:01.3]} 25. Rxe1 {[%clk
0:01:55.6]} 25... Rd8 {[%clk 0:01:02.2]} 26. Nxd5 {[%clk 0:00:27.4]} 26... Nxd5
{[%clk 0:01:02.4]} 27. h3 {[%clk 0:00:25.2]} 27... Nf2+ {[%clk 0:00:50]} 28. Kg1
{[%clk 0:00:26.3]} 28... Nd3 {[%clk 0:00:50.8]} 29. Rb1 {[%clk 0:00:18.9]} 29...
Kh8 {[%clk 0:00:33.9]} 30. g3 {[%clk 0:00:19.6]} 30... Nb6 {[%clk 0:00:11.9]}
31. Bc2 {[%clk 0:00:20.3]} 31... Nxb2 {[%clk 0:00:11.2]} 32. Rxb2 {[%clk
0:00:19.9]} 32... a5 {[%clk 0:00:12.5]} 33. Bb3 {[%clk 0:00:18.5]} 33... f5
{[%clk 0:00:12]} 34. Rc2 {[%clk 0:00:18.4]} 34... h6 {[%clk 0:00:08.5]} 35. Rc6
{[%clk 0:00:16.7]} 35... Nd5 {[%clk 0:00:09.1]} 36. Rxg6 {[%clk 0:00:14.9]}
36... Kh7 {[%clk 0:00:10.1]} 37. Ra6 {[%clk 0:00:16]} 37... Nc3 {[%clk
0:00:09.3]} 38. Be3 {[%clk 0:00:12.6]} 38... a4 {[%clk 0:00:05.7]} 39. Bxa4
{[%clk 0:00:10.5]} 39... Nd5 {[%clk 0:00:04.2]} 40. Bf2 {[%clk 0:00:09.4]} 40...
Rc8 {[%clk 0:00:04.8]} 41. Bb3 {[%clk 0:00:08.9]} 41... Rc1+ {[%clk 0:00:05.5]}
42. Kg2 {[%clk 0:00:09.9]} 42... Nc3 {[%clk 0:00:06.6]} 43. Ne5 {[%clk
0:00:10.6]} 43... Ne4 {[%clk 0:00:06.7]} 44. Be3 {[%clk 0:00:11.1]} 44... Rb1
{[%clk 0:00:06.4]} 45. Ra7 {[%clk 0:00:10.9]} 45... Rb2+ {[%clk 0:00:06.9]} 46.
Kf3 {[%clk 0:00:11.3]} 46... h5 {[%clk 0:00:07.5]} 47. Be6 {[%clk 0:00:09.6]}
47... Nd6 {[%clk 0:00:07.2]} 48. Bf4 {[%clk 0:00:09.5]} 48... h4 {[%clk
0:00:04.1]} 49. gxh4 {[%clk 0:00:10.5]} 49... Rc2 {[%clk 0:00:04.3]} 50. h5
{[%clk 0:00:11.2]} 50... Rc3+ {[%clk 0:00:05.2]} 51. Ke2 {[%clk 0:00:12.2]} 1-0

[Event "GrandPrix_30.05"]
[Site "Chess.com"]
[Date "2020.05.30"]
[Round "6"]
[White "MirMan90"]
[Black "KJakubowski"]
[Result "1-0"]
[WhiteElo "2306"]
[BlackElo "2343"]
[TimeControl "600+2"]
[EndTime "10:58:10 PDT"]
[Termination "MirMan90 won by resignation"]

1. d4 {[%clk 0:10:01.9]} 1... Nf6 {[%clk 0:09:56.9]} 2. c4 {[%clk 0:10:02.8]}
2... e6 {[%clk 0:09:57.6]} 3. Nf3 {[%clk 0:10:03.9]} 3... d5 {[%clk 0:09:57.3]}
4. Nc3 {[%clk 0:10:04]} 4... Nbd7 {[%clk 0:09:56.9]} 5. cxd5 {[%clk 0:10:03.3]}
5... exd5 {[%clk 0:09:56.9]} 6. Bg5 {[%clk 0:10:04.4]} 6... Be7 {[%clk
0:09:56.5]} 7. e3 {[%clk 0:10:01.2]} 7... O-O {[%clk 0:09:56.6]} 8. Qc2 {[%clk
0:10:00.3]} 8... Re8 {[%clk 0:09:55.5]} 9. Bd3 {[%clk 0:09:49.1]} 9... c6 {[%clk
0:09:54.5]} 10. h3 {[%clk 0:09:46.1]} 10... Nf8 {[%clk 0:09:49.6]} 11. Bf4
{[%clk 0:09:44.8]} 11... Bd6 {[%clk 0:09:44.2]} 12. Bxd6 {[%clk 0:09:45.5]}
12... Qxd6 {[%clk 0:09:44.5]} 13. O-O-O {[%clk 0:09:47]} 13... a5 {[%clk
0:09:11.6]} 14. Kb1 {[%clk 0:09:44.7]} 14... Be6 {[%clk 0:08:51.1]} 15. g4
{[%clk 0:09:39.6]} 15... N6d7 {[%clk 0:08:49.9]} 16. Rc1 {[%clk 0:09:28.5]}
16... Rec8 {[%clk 0:08:40.1]} 17. Na4 {[%clk 0:09:21.8]} 17... b6 {[%clk
0:08:04.9]} 18. Ne5 {[%clk 0:08:02.8]} 18... c5 {[%clk 0:06:53.5]} 19. Nxd7
{[%clk 0:07:48.3]} 19... Bxd7 {[%clk 0:06:52.8]} 20. dxc5 {[%clk 0:07:46.7]}
20... bxc5 {[%clk 0:06:53.3]} 21. Rhd1 {[%clk 0:07:36.4]} 21... Bxa4 {[%clk
0:05:44.3]} 22. Qxa4 {[%clk 0:07:35.4]} 22... Qh2 {[%clk 0:05:36.7]} 23. Qc2
{[%clk 0:06:51.6]} 23... g6 {[%clk 0:05:21.7]} 24. Bf1 {[%clk 0:06:43.7]} 24...
d4 {[%clk 0:04:52.9]} 25. Qe2 {[%clk 0:06:13.5]} 25... dxe3 {[%clk 0:04:32.4]}
26. Qxe3 {[%clk 0:06:13.1]} 26... Ne6 {[%clk 0:03:27.8]} 27. Bc4 {[%clk
0:06:12.3]} 27... Nd4 {[%clk 0:03:27.4]} 28. Qe7 {[%clk 0:04:57.1]} 28... Qf4
{[%clk 0:03:22.7]} 29. Qe3 {[%clk 0:04:45.7]} 29... Qd6 {[%clk 0:03:18.6]} 30.
h4 {[%clk 0:04:41.5]} 30... Re8 {[%clk 0:03:09.9]} 31. Qh6 {[%clk 0:04:38]}
31... Rab8 {[%clk 0:02:55.1]} 32. h5 {[%clk 0:04:33.6]} 32... Qf6 {[%clk
0:02:55.2]} 33. Rd2 {[%clk 0:04:28.5]} 33... Nf3 {[%clk 0:02:44.9]} 34. Rdc2
{[%clk 0:04:19.9]} 34... Re4 {[%clk 0:02:08.2]} 35. hxg6 {[%clk 0:04:05.5]}
35... hxg6 {[%clk 0:02:08.1]} 36. Bd5 {[%clk 0:03:09]} 36... Reb4 {[%clk
0:02:00.5]} 37. b3 {[%clk 0:03:07.1]} 37... c4 {[%clk 0:00:38]} 38. Bxc4 {[%clk
0:02:25.8]} 38... Ne5 {[%clk 0:00:37.9]} 39. Bd5 {[%clk 0:02:10.5]} 39... Rd8
{[%clk 0:00:38.7]} 40. Rc8 {[%clk 0:01:59.9]} 40... Rb8 {[%clk 0:00:39.6]} 41.
R1c6 {[%clk 0:01:46]} 41... Qg7 {[%clk 0:00:24.2]} 42. Qxg7+ {[%clk 0:01:44.3]}
42... Kxg7 {[%clk 0:00:26.1]} 43. Rxb8 {[%clk 0:01:45.1]} 43... Rxb8 {[%clk
0:00:26.9]} 44. Rc7 {[%clk 0:01:46.2]} 44... Rb5 {[%clk 0:00:26.2]} 45. Bc4
{[%clk 0:01:44.9]} 45... Nxc4 {[%clk 0:00:25.3]} 46. Rxc4 {[%clk 0:01:46.4]}
46... Kf6 {[%clk 0:00:25.4]} 47. f4 {[%clk 0:01:46.3]} 47... g5 {[%clk
0:00:26.5]} 48. f5 {[%clk 0:01:46.6]} 48... Ke5 {[%clk 0:00:26.7]} 49. Kc2
{[%clk 0:01:48]} 49... Rd5 {[%clk 0:00:21.2]} 50. b4 {[%clk 0:01:45.6]} 50...
axb4 {[%clk 0:00:21.3]} 51. Rxb4 {[%clk 0:01:47.1]} 51... Rc5+ {[%clk
0:00:20.3]} 52. Kb3 {[%clk 0:01:48]} 52... Rc1 {[%clk 0:00:21.1]} 53. Kb2 {[%clk
0:01:44.9]} 53... Rg1 {[%clk 0:00:21.5]} 54. a4 {[%clk 0:01:43.9]} 54... Kd5
{[%clk 0:00:22.9]} 55. a5 {[%clk 0:01:41.2]} 55... Kc5 {[%clk 0:00:24.3]} 56.
Re4 {[%clk 0:01:33.2]} 56... Kb5 {[%clk 0:00:24.2]} 57. Kc3 {[%clk 0:01:32.4]}
57... f6 {[%clk 0:00:20.3]} 58. Kd4 {[%clk 0:01:26.1]} 58... Rd1+ {[%clk
0:00:21]} 59. Ke3 {[%clk 0:01:26.4]} 59... Re1+ {[%clk 0:00:14.5]} 60. Kf3
{[%clk 0:01:25.8]} 60... Rf1+ {[%clk 0:00:14.9]} 61. Kg2 {[%clk 0:01:26.4]}
61... Rc1 {[%clk 0:00:12.8]} 62. Re6 {[%clk 0:01:27.1]} 62... Rc4 {[%clk
0:00:14.4]} 63. Kf3 {[%clk 0:01:25.6]} 63... Rf4+ {[%clk 0:00:14.4]} 64. Kg3
{[%clk 0:01:26.5]} 64... Ra4 {[%clk 0:00:13.6]} 65. Rxf6 {[%clk 0:01:26.9]}
65... Ra3+ {[%clk 0:00:14.8]} 66. Kf2 {[%clk 0:01:28.1]} 66... Ra2+ {[%clk
0:00:12.6]} 67. Kf3 {[%clk 0:01:29.1]} 67... Ra3+ {[%clk 0:00:13.7]} 68. Ke4
{[%clk 0:01:30.4]} 68... Ra4+ {[%clk 0:00:14.9]} 69. Ke5 {[%clk 0:01:31]} 69...
Kxa5 {[%clk 0:00:12.7]} 70. Rg6 {[%clk 0:01:31]} 70... Rxg4 {[%clk 0:00:14.3]}
71. f6 {[%clk 0:01:32.2]} 71... Rg1 {[%clk 0:00:15.1]} 72. f7 {[%clk 0:01:32]}
72... Re1+ {[%clk 0:00:15.6]} 73. Kf6 {[%clk 0:01:32.7]} 73... Rf1+ {[%clk
0:00:17.1]} 74. Kg7 {[%clk 0:01:34.1]} 1-0

[Event "GrandPrix_30.05"]
[Site "Chess.com"]
[Date "2020.05.30"]
[Round "6"]
[White "Andrei_Belozerov"]
[Black "LiamVrolijk"]
[Result "0-1"]
[WhiteElo "2437"]
[BlackElo "2438"]
[TimeControl "600+2"]
[EndTime "10:58:12 PDT"]
[Termination "LiamVrolijk won by resignation"]

1. e4 {[%clk 0:10:01.9]} 1... e5 {[%clk 0:10:00.2]} 2. Nf3 {[%clk 0:10:02.2]}
2... Nc6 {[%clk 0:10:01.4]} 3. Bb5 {[%clk 0:10:03.7]} 3... a6 {[%clk 0:10:01.4]}
4. Ba4 {[%clk 0:10:04.8]} 4... Nf6 {[%clk 0:10:02.3]} 5. O-O {[%clk 0:10:04.9]}
5... b5 {[%clk 0:10:03.7]} 6. Bb3 {[%clk 0:10:05.1]} 6... Bc5 {[%clk 0:10:04.6]}
7. d3 {[%clk 0:09:56.8]} 7... d6 {[%clk 0:10:04.8]} 8. Be3 {[%clk 0:09:56.8]}
8... O-O {[%clk 0:10:01.7]} 9. Nbd2 {[%clk 0:09:42.8]} 9... h6 {[%clk
0:09:07.5]} 10. c3 {[%clk 0:09:35.5]} 10... Rb8 {[%clk 0:09:02]} 11. a4 {[%clk
0:08:59.2]} 11... Bd7 {[%clk 0:08:49.2]} 12. axb5 {[%clk 0:08:56.1]} 12... axb5
{[%clk 0:08:47.2]} 13. h3 {[%clk 0:08:49.8]} 13... Bb6 {[%clk 0:08:30.8]} 14.
Bxb6 {[%clk 0:08:44.1]} 14... Rxb6 {[%clk 0:08:32.7]} 15. Re1 {[%clk 0:08:15.1]}
15... Ne7 {[%clk 0:08:28.8]} 16. d4 {[%clk 0:08:01.7]} 16... Ng6 {[%clk
0:08:28.2]} 17. Nf1 {[%clk 0:08:01.9]} 17... c5 {[%clk 0:08:11.4]} 18. Ne3
{[%clk 0:07:41.3]} 18... Re8 {[%clk 0:07:24.1]} 19. Nd5 {[%clk 0:05:58.7]} 19...
Nxd5 {[%clk 0:07:13]} 20. Bxd5 {[%clk 0:05:57.4]} 20... Nf4 {[%clk 0:06:40.7]}
21. dxc5 {[%clk 0:05:55.5]} 21... dxc5 {[%clk 0:06:39.6]} 22. Ra7 {[%clk
0:05:56.6]} 22... Rf6 {[%clk 0:05:14.5]} 23. Ba2 {[%clk 0:05:32.7]} 23... Be6
{[%clk 0:03:54]} 24. Nxe5 {[%clk 0:05:03.3]} 24... Qxd1 {[%clk 0:03:43.8]} 25.
Rxd1 {[%clk 0:05:01.8]} 25... Bxa2 {[%clk 0:03:44.8]} 26. Ng4 {[%clk 0:04:46.1]}
26... Bb3 {[%clk 0:02:53.8]} 27. Nxf6+ {[%clk 0:04:44.3]} 27... gxf6 {[%clk
0:02:55.7]} 28. Rd6 {[%clk 0:04:44.9]} 28... Rxe4 {[%clk 0:02:47.7]} 29. Rxf6
{[%clk 0:04:42.9]} 29... Be6 {[%clk 0:02:45.6]} 30. Rxh6 {[%clk 0:03:40.9]}
30... Kg7 {[%clk 0:02:39.1]} 31. Rxe6 {[%clk 0:03:33.7]} 31... Nxe6 {[%clk
0:02:28.5]} 32. Rb7 {[%clk 0:03:17.7]} 32... b4 {[%clk 0:02:27.8]} 33. Kf1
{[%clk 0:03:15.4]} 33... bxc3 {[%clk 0:02:19.2]} 34. bxc3 {[%clk 0:03:15.4]}
34... Nf4 {[%clk 0:02:20.6]} 35. g3 {[%clk 0:02:07.3]} 35... Nd5 {[%clk
0:01:58.3]} 36. Rb3 {[%clk 0:01:43.4]} 36... Kf6 {[%clk 0:01:23.4]} 37. h4
{[%clk 0:01:42.6]} 37... Ke5 {[%clk 0:01:16.7]} 38. h5 {[%clk 0:01:35.3]} 38...
Kf6 {[%clk 0:01:17.6]} 39. Kg2 {[%clk 0:01:23.3]} 39... Kg5 {[%clk 0:01:06.1]}
40. Rb7 {[%clk 0:01:18.3]} 40... Re7 {[%clk 0:00:46.6]} 41. Rb5 {[%clk
0:01:14.1]} 41... Rc7 {[%clk 0:00:46.9]} 42. c4 {[%clk 0:01:08]} 42... Nf6
{[%clk 0:00:48.1]} 43. f4+ {[%clk 0:01:05.8]} 43... Kxh5 {[%clk 0:00:46.1]} 44.
Kf3 {[%clk 0:01:06.8]} 44... Kg6 {[%clk 0:00:41.5]} 45. g4 {[%clk 0:01:07.3]}
45... Rc6 {[%clk 0:00:37.2]} 46. Ra5 {[%clk 0:00:53.4]} 46... Nd7 {[%clk
0:00:33.6]} 47. Ke4 {[%clk 0:00:51.7]} 47... Rd6 {[%clk 0:00:34.9]} 48. Ra4
{[%clk 0:00:42]} 48... Rd4+ {[%clk 0:00:34.9]} 49. Ke3 {[%clk 0:00:40.9]} 49...
Nf6 {[%clk 0:00:33.7]} 50. Ra6 {[%clk 0:00:39.7]} 50... Kg7 {[%clk 0:00:32]} 51.
g5 {[%clk 0:00:37.6]} 51... Nh5 {[%clk 0:00:30.5]} 52. f5 {[%clk 0:00:36.7]}
52... Rxc4 {[%clk 0:00:31.6]} 53. Ra7 {[%clk 0:00:32.2]} 53... Ng3 {[%clk
0:00:28.7]} 54. f6+ {[%clk 0:00:07.5]} 54... Kg6 {[%clk 0:00:29.6]} 55. Kf3
{[%clk 0:00:07.9]} 55... Ne4 {[%clk 0:00:22.9]} 0-1

[Event "GrandPrix_30.05"]
[Site "Chess.com"]
[Date "2020.05.30"]
[Round "6"]
[White "BairaKovanova"]
[Black "iceboy88"]
[Result "1/2-1/2"]
[WhiteElo "2132"]
[BlackElo "2248"]
[TimeControl "600+2"]
[EndTime "10:58:14 PDT"]
[Termination "Game drawn - insufficient material"]

1. e4 {[%clk 0:10:01.9]} 1... e5 {[%clk 0:09:54.9]} 2. Nf3 {[%clk 0:10:00.5]}
2... Nc6 {[%clk 0:09:55.6]} 3. Bb5 {[%clk 0:09:58.2]} 3... a6 {[%clk 0:09:55.7]}
4. Ba4 {[%clk 0:09:58.4]} 4... Nf6 {[%clk 0:09:56.8]} 5. d3 {[%clk 0:09:57.9]}
5... d6 {[%clk 0:09:47.6]} 6. c4 {[%clk 0:09:54.8]} 6... g6 {[%clk 0:09:45.7]}
7. h3 {[%clk 0:09:52.8]} 7... Bg7 {[%clk 0:09:42.3]} 8. Nc3 {[%clk 0:09:54.1]}
8... O-O {[%clk 0:09:42]} 9. O-O {[%clk 0:09:53.2]} 9... h6 {[%clk 0:09:32.1]}
10. Be3 {[%clk 0:09:06.7]} 10... Kh7 {[%clk 0:09:29.8]} 11. Nd5 {[%clk
0:08:59.5]} 11... Ne8 {[%clk 0:09:04.5]} 12. d4 {[%clk 0:08:50.4]} 12... exd4
{[%clk 0:08:57.6]} 13. Nxd4 {[%clk 0:08:48.6]} 13... Nxd4 {[%clk 0:08:42.8]} 14.
Bxd4 {[%clk 0:08:48.9]} 14... c6 {[%clk 0:08:43.1]} 15. Bxg7 {[%clk 0:06:34.8]}
15... Kxg7 {[%clk 0:07:49.9]} 16. Qd4+ {[%clk 0:06:32.5]} 16... Nf6 {[%clk
0:07:50.4]} 17. Nxf6 {[%clk 0:05:38]} 17... Qxf6 {[%clk 0:07:50.8]} 18. Rad1
{[%clk 0:05:38.8]} 18... Qxd4 {[%clk 0:07:18.1]} 19. Rxd4 {[%clk 0:05:37.3]}
19... Be6 {[%clk 0:07:18.8]} 20. Bb3 {[%clk 0:05:35.3]} 20... Rfd8 {[%clk
0:07:13.2]} 21. Rfd1 {[%clk 0:05:36.1]} 21... Kf6 {[%clk 0:07:14.2]} 22. c5
{[%clk 0:05:19.6]} 22... Bxb3 {[%clk 0:05:57.3]} 23. axb3 {[%clk 0:04:52.2]}
23... Ke7 {[%clk 0:05:32.2]} 24. cxd6+ {[%clk 0:03:57.3]} 24... Ke6 {[%clk
0:05:31.5]} 25. f4 {[%clk 0:03:27.1]} 25... Rd7 {[%clk 0:05:06.1]} 26. e5 {[%clk
0:03:27.3]} 26... f6 {[%clk 0:04:57]} 27. Re1 {[%clk 0:03:26]} 27... fxe5 {[%clk
0:04:49.1]} 28. fxe5 {[%clk 0:03:21.3]} 28... Rf8 {[%clk 0:04:49.2]} 29. h4
{[%clk 0:03:09.8]} 29... Rf5 {[%clk 0:04:46.8]} 30. Rde4 {[%clk 0:02:59.1]}
30... Rd8 {[%clk 0:04:27.9]} 31. Rf1 {[%clk 0:02:48.7]} 31... Rxe5 {[%clk
0:04:24.2]} 32. Rxe5+ {[%clk 0:02:22.4]} 32... Kxe5 {[%clk 0:04:24.9]} 33. Rf7
{[%clk 0:02:23.8]} 33... Rxd6 {[%clk 0:03:39.6]} 34. Rxb7 {[%clk 0:02:22.7]}
34... Kf4 {[%clk 0:03:22.4]} 35. Kh2 {[%clk 0:02:22.5]} 35... g5 {[%clk
0:02:48.4]} 36. hxg5 {[%clk 0:02:11.3]} 36... hxg5 {[%clk 0:02:49.5]} 37. Rb4+
{[%clk 0:02:12.3]} 37... Ke3 {[%clk 0:02:33.3]} 38. Kg3 {[%clk 0:02:03.1]} 38...
Kd3 {[%clk 0:02:26.2]} 39. Rb6 {[%clk 0:02:02.5]} 39... a5 {[%clk 0:02:07.7]}
40. b4 {[%clk 0:01:57.9]} 40... axb4 {[%clk 0:01:40.5]} 41. Rxb4 {[%clk
0:01:58.3]} 41... c5 {[%clk 0:01:28.4]} 42. Rb3+ {[%clk 0:01:37.8]} 42... Kd4
{[%clk 0:01:08.4]} 43. Kg4 {[%clk 0:01:32]} 43... Rd5 {[%clk 0:01:05.9]} 44. Kh5
{[%clk 0:01:05.2]} 44... c4 {[%clk 0:01:05.2]} 45. Rb8 {[%clk 0:00:56.2]} 45...
Kd3 {[%clk 0:00:56.5]} 46. g4 {[%clk 0:00:55.6]} 46... Rc5 {[%clk 0:00:42.7]}
47. Rf8 {[%clk 0:00:33.8]} 47... Kc2 {[%clk 0:00:39.6]} 48. Rf2+ {[%clk
0:00:33.4]} 48... Kb3 {[%clk 0:00:39.7]} 49. Rf5 {[%clk 0:00:15.7]} 49... Rxf5
{[%clk 0:00:14.2]} 50. gxf5 {[%clk 0:00:16.2]} 50... Kxb2 {[%clk 0:00:15.7]} 51.
f6 {[%clk 0:00:17.4]} 51... c3 {[%clk 0:00:17]} 52. f7 {[%clk 0:00:19]} 52... c2
{[%clk 0:00:18.3]} 53. f8=Q {[%clk 0:00:19.2]} 53... c1=Q {[%clk 0:00:19.7]} 54.
Qb8+ {[%clk 0:00:18.1]} 54... Ka1 {[%clk 0:00:17]} 55. Qa7+ {[%clk 0:00:17.1]}
55... Kb2 {[%clk 0:00:14.8]} 56. Qb6+ {[%clk 0:00:18.2]} 56... Kc2 {[%clk
0:00:16]} 57. Qc6+ {[%clk 0:00:18.8]} 57... Kd1 {[%clk 0:00:17.4]} 58. Qxc1+
{[%clk 0:00:19.6]} 58... Kxc1 {[%clk 0:00:19]} 59. Kxg5 {[%clk 0:00:20.7]}
1/2-1/2